[Event "Early-Titled-Tuesday-Blitz-April-16-2024"]
[Site "Chess.com"]
[Date "2024.04.16"]
[Round "1"]
[White "wannabe2700"]
[Black "LuisFSiles"]
[Result "1-0"]
[WhiteElo "2665"]
[BlackElo "2373"]
[TimeControl "180+1"]
[EndTime "8:06:18 PDT"]
[Termination "wannabe2700 won by resignation"]

1. b3 {[%clk 0:03:00.9]} 1... e5 {[%clk 0:02:59.2]} 2. Bb2 {[%clk 0:03:01.8]}
2... Nc6 {[%clk 0:02:59.4]} 3. Nf3 {[%clk 0:03:01.9]} 3... d6 {[%clk 0:02:58.4]}
4. d4 {[%clk 0:02:59.8]} 4... exd4 {[%clk 0:02:57]} 5. Nxd4 {[%clk 0:02:59.9]}
5... Bd7 {[%clk 0:02:55.2]} 6. Nc3 {[%clk 0:02:58.8]} 6... Nf6 {[%clk
0:02:54.9]} 7. e4 {[%clk 0:02:57.1]} 7... g6 {[%clk 0:02:54.7]} 8. Qd2 {[%clk
0:02:56.6]} 8... Bg7 {[%clk 0:02:54.4]} 9. O-O-O {[%clk 0:02:56.2]} 9... O-O
{[%clk 0:02:53]} 10. f3 {[%clk 0:02:54.5]} 10... a5 {[%clk 0:02:46.3]} 11. Bb5
{[%clk 0:02:40.1]} 11... Nxd4 {[%clk 0:02:37]} 12. Qxd4 {[%clk 0:02:41]} 12...
c6 {[%clk 0:02:36.3]} 13. Be2 {[%clk 0:02:39.5]} 13... d5 {[%clk 0:02:36.1]} 14.
Qd3 {[%clk 0:02:21.5]} 14... Be6 {[%clk 0:02:29]} 15. exd5 {[%clk 0:02:04.5]}
15... Nxd5 {[%clk 0:02:19.2]} 16. Nxd5 {[%clk 0:02:04.8]} 16... Bxb2+ {[%clk
0:02:19]} 17. Kxb2 {[%clk 0:02:05.7]} 17... Bxd5 {[%clk 0:02:16]} 18. Qd4 {[%clk
0:01:51.4]} 18... Qe7 {[%clk 0:01:53.9]} 19. Rhe1 {[%clk 0:01:47]} 19... Qb4
{[%clk 0:01:42.8]} 20. Qxb4 {[%clk 0:01:46.4]} 20... axb4 {[%clk 0:01:42.7]} 21.
Rd4 {[%clk 0:01:47.3]} 21... Rfe8 {[%clk 0:01:21]} 22. Rxb4 {[%clk 0:01:47.4]}
22... Re5 {[%clk 0:01:15]} 23. c4 {[%clk 0:01:39.5]} 23... Rae8 {[%clk 0:01:14]}
24. cxd5 {[%clk 0:01:35.7]} 24... Rxe2+ {[%clk 0:01:14.2]} 25. Rxe2 {[%clk
0:01:36.6]} 25... Rxe2+ {[%clk 0:01:14.4]} 26. Ka3 {[%clk 0:01:14]} 26... cxd5
{[%clk 0:01:13.9]} 27. g4 {[%clk 0:01:13.5]} 27... Rxh2 {[%clk 0:01:09.4]} 28.
Rxb7 {[%clk 0:01:07.6]} 28... h5 {[%clk 0:01:09.2]} 29. gxh5 {[%clk 0:01:06.8]}
29... gxh5 {[%clk 0:01:10.1]} 30. Rd7 {[%clk 0:01:03.7]} 30... Rd2 {[%clk
0:01:04.1]} 31. Re7 {[%clk 0:01:00.5]} 31... h4 {[%clk 0:01:03]} 32. Re5 {[%clk
0:01:00.2]} 32... h3 {[%clk 0:01:01.3]} 33. Rg5+ {[%clk 0:00:57.1]} 33... Kf8
{[%clk 0:01:00.2]} 34. b4 {[%clk 0:00:55.7]} 34... h2 {[%clk 0:00:46.3]} 35. Rh5
{[%clk 0:00:52.9]} 35... d4 {[%clk 0:00:46.7]} 36. Kb3 {[%clk 0:00:48]} 36... d3
{[%clk 0:00:47]} 37. a4 {[%clk 0:00:44.9]} 37... Rb2+ {[%clk 0:00:41.6]} 38.
Kxb2 {[%clk 0:00:43.8]} 38... d2 {[%clk 0:00:41.9]} 39. Kc2 {[%clk 0:00:44.1]}
1-0

[Event "Early-Titled-Tuesday-Blitz-April-16-2024"]
[Site "Chess.com"]
[Date "2024.04.16"]
[Round "1"]
[White "El_Matador12"]
[Black "ChEsper99"]
[Result "1-0"]
[WhiteElo "2582"]
[BlackElo "2198"]
[TimeControl "180+1"]
[EndTime "8:06:18 PDT"]
[Termination "El_Matador12 won on time"]

1. d4 {[%clk 0:02:51.5]} 1... Nf6 {[%clk 0:02:59]} 2. Bg5 {[%clk 0:02:50.2]}
2... d5 {[%clk 0:02:44.9]} 3. Bxf6 {[%clk 0:02:48.7]} 3... gxf6 {[%clk
0:02:45.1]} 4. e3 {[%clk 0:02:47.9]} 4... c5 {[%clk 0:02:45.4]} 5. c3 {[%clk
0:02:47.4]} 5... Nc6 {[%clk 0:02:44.8]} 6. dxc5 {[%clk 0:02:41.7]} 6... e5
{[%clk 0:02:44.6]} 7. b4 {[%clk 0:02:41]} 7... a5 {[%clk 0:02:29.5]} 8. Qb3
{[%clk 0:02:36.5]} 8... axb4 {[%clk 0:02:18.9]} 9. cxb4 {[%clk 0:02:34.1]} 9...
b6 {[%clk 0:02:18.9]} 10. Bb5 {[%clk 0:02:30]} 10... Bb7 {[%clk 0:01:43.2]} 11.
Nf3 {[%clk 0:02:20.1]} 11... bxc5 {[%clk 0:01:42.6]} 12. bxc5 {[%clk 0:02:19.1]}
12... Bxc5 {[%clk 0:01:41]} 13. O-O {[%clk 0:02:18.4]} 13... O-O {[%clk
0:01:39.7]} 14. a4 {[%clk 0:02:15.1]} 14... Na5 {[%clk 0:01:29]} 15. Qc2 {[%clk
0:02:13.4]} 15... Rc8 {[%clk 0:01:28.5]} 16. Qf5 {[%clk 0:02:10.4]} 16... Qe7
{[%clk 0:01:19.3]} 17. Nbd2 {[%clk 0:02:08]} 17... Qe6 {[%clk 0:01:19]} 18. Qh5
{[%clk 0:02:06.5]} 18... f5 {[%clk 0:01:15.8]} 19. Nh4 {[%clk 0:02:01.8]} 19...
Kh8 {[%clk 0:00:41.6]} 20. Nxf5 {[%clk 0:01:58.3]} 20... Rg8 {[%clk 0:00:41.3]}
21. Ng3 {[%clk 0:01:33]} 21... Rg6 {[%clk 0:00:20.2]} 22. Qf5 {[%clk 0:01:25.4]}
22... Qxf5 {[%clk 0:00:15.4]} 23. Nxf5 {[%clk 0:01:25.6]} 23... Rcg8 {[%clk
0:00:15.9]} 24. g3 {[%clk 0:01:20]} 24... Bc8 {[%clk 0:00:09]} 25. Nh4 {[%clk
0:01:16.2]} 25... Rh6 {[%clk 0:00:09.3]} 26. Ng2 {[%clk 0:01:13.1]} 26... f5
{[%clk 0:00:07.2]} 27. Rac1 {[%clk 0:01:12.5]} 27... Bb4 {[%clk 0:00:07.5]} 28.
Nf3 {[%clk 0:01:12]} 28... e4 {[%clk 0:00:04]} 29. Nd4 {[%clk 0:01:11.1]} 1-0

[Event "Early-Titled-Tuesday-Blitz-April-16-2024"]
[Site "Chess.com"]
[Date "2024.04.16"]
[Round "1"]
[White "lrjchess"]
[Black "sokidze"]
[Result "1-0"]
[WhiteElo "2484"]
[BlackElo "2807"]
[TimeControl "180+1"]
[EndTime "8:06:22 PDT"]
[Termination "lrjchess won on time"]

1. d4 {[%clk 0:02:55.6]} 1... d5 {[%clk 0:02:58.4]} 2. Nc3 {[%clk 0:02:55.7]}
2... Nf6 {[%clk 0:02:57.7]} 3. Bg5 {[%clk 0:02:55.9]} 3... h6 {[%clk 0:02:56]}
4. Bh4 {[%clk 0:02:55.4]} 4... e6 {[%clk 0:02:49.3]} 5. e4 {[%clk 0:02:54.6]}
5... g5 {[%clk 0:02:43.3]} 6. Bg3 {[%clk 0:02:54.2]} 6... Nxe4 {[%clk
0:02:32.4]} 7. Nxe4 {[%clk 0:02:53.6]} 7... dxe4 {[%clk 0:02:33]} 8. h4 {[%clk
0:02:48.5]} 8... Bg7 {[%clk 0:02:17.1]} 9. hxg5 {[%clk 0:02:36.5]} 9... hxg5
{[%clk 0:02:16.9]} 10. Rxh8+ {[%clk 0:02:35.1]} 10... Bxh8 {[%clk 0:02:17.1]}
11. c3 {[%clk 0:02:35.5]} 11... Nd7 {[%clk 0:01:36.9]} 12. Qh5 {[%clk
0:02:31.8]} 12... Bf6 {[%clk 0:01:32.9]} 13. Bc4 {[%clk 0:02:27.6]} 13... Nb6
{[%clk 0:01:30.4]} 14. Bb3 {[%clk 0:02:25.3]} 14... Bd7 {[%clk 0:01:29.1]} 15.
Qh7 {[%clk 0:02:23.3]} 15... Bc6 {[%clk 0:01:19.9]} 16. Qg8+ {[%clk 0:02:12.5]}
16... Ke7 {[%clk 0:01:19]} 17. Qh7 {[%clk 0:02:10.7]} 17... Qd7 {[%clk
0:00:59.4]} 18. Be5 {[%clk 0:01:59.4]} 18... Bxe5 {[%clk 0:00:27.6]} 19. dxe5
{[%clk 0:02:00.3]} 19... Qd8 {[%clk 0:00:21.7]} 20. Qg7 {[%clk 0:01:55.3]} 20...
Qg8 {[%clk 0:00:22]} 21. Qf6+ {[%clk 0:01:54.3]} 21... Ke8 {[%clk 0:00:22.7]}
22. O-O-O {[%clk 0:01:51.7]} 22... Nd7 {[%clk 0:00:23]} 23. Qh6 {[%clk
0:01:44.9]} 23... Nxe5 {[%clk 0:00:23]} 24. Nh3 {[%clk 0:01:39.9]} 24... Nd3+
{[%clk 0:00:14.2]} 25. Kb1 {[%clk 0:01:39.4]} 25... g4 {[%clk 0:00:14.8]} 26.
Ng5 {[%clk 0:01:36]} 26... Rd8 {[%clk 0:00:12.3]} 27. Nxe6 {[%clk 0:01:13]}
27... fxe6 {[%clk 0:00:03.6]} 28. Bxe6 {[%clk 0:01:13.9]} 28... Qf8 {[%clk
0:00:03]} 29. Qg6+ {[%clk 0:01:13.1]} 29... Ke7 {[%clk 0:00:03.5]} 30. Bxg4
{[%clk 0:01:12.6]} 30... Qf6 {[%clk 0:00:02.5]} 31. Qh7+ {[%clk 0:01:12.7]}
31... Qf7 {[%clk 0:00:03.1]} 32. Qh4+ {[%clk 0:01:12.6]} 32... Qf6 {[%clk
0:00:03.7]} 33. Qh7+ {[%clk 0:01:12.8]} 33... Kf8 {[%clk 0:00:02.5]} 34. f3
{[%clk 0:01:02.2]} 1-0

[Event "Early-Titled-Tuesday-Blitz-April-16-2024"]
[Site "Chess.com"]
[Date "2024.04.16"]
[Round "1"]
[White "Grossboss19"]
[Black "Roosters19"]
[Result "0-1"]
[WhiteElo "2592"]
[BlackElo "2305"]
[TimeControl "180+1"]
[EndTime "8:06:22 PDT"]
[Termination "Roosters19 won by checkmate"]

1. e4 {[%clk 0:02:55.1]} 1... c5 {[%clk 0:02:59.6]} 2. Nf3 {[%clk 0:02:54.2]}
2... Nc6 {[%clk 0:02:59.6]} 3. Bb5 {[%clk 0:02:45.6]} 3... g6 {[%clk 0:02:58.8]}
4. O-O {[%clk 0:02:43.8]} 4... Bg7 {[%clk 0:02:58.2]} 5. Re1 {[%clk 0:02:39.5]}
5... Nf6 {[%clk 0:02:57.4]} 6. c3 {[%clk 0:02:37.4]} 6... O-O {[%clk 0:02:56]}
7. h3 {[%clk 0:02:30.3]} 7... Qc7 {[%clk 0:02:37]} 8. a4 {[%clk 0:02:18.7]} 8...
b6 {[%clk 0:02:26.7]} 9. Na3 {[%clk 0:02:17.1]} 9... Bb7 {[%clk 0:02:26]} 10.
Nc2 {[%clk 0:02:12.1]} 10... d5 {[%clk 0:02:24.4]} 11. e5 {[%clk 0:02:00.6]}
11... Nd7 {[%clk 0:01:53.5]} 12. d4 {[%clk 0:01:58.8]} 12... e6 {[%clk
0:01:50.9]} 13. Be3 {[%clk 0:01:56.1]} 13... a6 {[%clk 0:01:50.4]} 14. Bd3
{[%clk 0:01:47.7]} 14... a5 {[%clk 0:01:39.1]} 15. Qe2 {[%clk 0:01:41.7]} 15...
c4 {[%clk 0:01:38.2]} 16. Na3 {[%clk 0:01:36.9]} 16... cxd3 {[%clk 0:01:37.2]}
17. Qxd3 {[%clk 0:01:37.4]} 17... Ba6 {[%clk 0:01:36.9]} 18. Qd2 {[%clk
0:01:37.1]} 18... Ne7 {[%clk 0:01:35.1]} 19. g4 {[%clk 0:01:36.6]} 19... Rab8
{[%clk 0:01:32.9]} 20. Bh6 {[%clk 0:01:31.4]} 20... b5 {[%clk 0:01:25.9]} 21.
axb5 {[%clk 0:01:29.1]} 21... Bxb5 {[%clk 0:01:25.6]} 22. Qg5 {[%clk 0:01:29.1]}
22... Qd8 {[%clk 0:01:15.3]} 23. Re3 {[%clk 0:01:08]} 23... Ba6 {[%clk
0:00:53.9]} 24. Ra2 {[%clk 0:00:59.9]} 24... Nc6 {[%clk 0:00:53.1]} 25. Qf4
{[%clk 0:00:55.9]} 25... f5 {[%clk 0:00:46.7]} 26. exf6 {[%clk 0:00:39]} 26...
Bxh6 {[%clk 0:00:46.2]} 27. Qxh6 {[%clk 0:00:37.6]} 27... Qxf6 {[%clk
0:00:45.9]} 28. Ng5 {[%clk 0:00:36.4]} 28... Qxf2+ {[%clk 0:00:43.8]} 29. Kh1
{[%clk 0:00:35.9]} 29... Qf1+ {[%clk 0:00:31.4]} 30. Kh2 {[%clk 0:00:35.4]}
30... Rf2+ {[%clk 0:00:31.1]} 31. Kg3 {[%clk 0:00:35.2]} 31... Rg2+ {[%clk
0:00:29.3]} 32. Kh4 {[%clk 0:00:33.3]} 32... Qf2+ {[%clk 0:00:29.1]} 33. Rg3
{[%clk 0:00:33.3]} 33... Qxg3# {[%clk 0:00:29.1]} 0-1

[Event "Early-Titled-Tuesday-Blitz-April-16-2024"]
[Site "Chess.com"]
[Date "2024.04.16"]
[Round "1"]
[White "cristiano78"]
[Black "AmanteDeMoi"]
[Result "0-1"]
[WhiteElo "2247"]
[BlackElo "2600"]
[TimeControl "180+1"]
[EndTime "8:06:25 PDT"]
[Termination "AmanteDeMoi won by resignation"]

1. d4 {[%clk 0:02:58.8]} 1... g6 {[%clk 0:02:59.4]} 2. c4 {[%clk 0:02:58.7]}
2... Bg7 {[%clk 0:02:59.6]} 3. Nf3 {[%clk 0:02:58.7]} 3... d6 {[%clk 0:02:59.8]}
4. Nc3 {[%clk 0:02:58.5]} 4... e5 {[%clk 0:02:59.9]} 5. dxe5 {[%clk 0:02:58.1]}
5... dxe5 {[%clk 0:03:00.8]} 6. Qxd8+ {[%clk 0:02:57.4]} 6... Kxd8 {[%clk
0:03:01.7]} 7. e4 {[%clk 0:02:56.6]} 7... f6 {[%clk 0:03:01.9]} 8. Be3 {[%clk
0:02:55.2]} 8... Be6 {[%clk 0:03:02.4]} 9. O-O-O+ {[%clk 0:02:52.8]} 9... Nd7
{[%clk 0:03:02.9]} 10. b3 {[%clk 0:02:52]} 10... Bh6 {[%clk 0:03:02.9]} 11. Bxh6
{[%clk 0:02:50.4]} 11... Nxh6 {[%clk 0:03:03.8]} 12. h3 {[%clk 0:02:50.8]} 12...
c6 {[%clk 0:03:04.1]} 13. Be2 {[%clk 0:02:49.5]} 13... Ke7 {[%clk 0:03:04.5]}
14. Rd2 {[%clk 0:02:48.7]} 14... Nf7 {[%clk 0:03:05]} 15. Rhd1 {[%clk
0:02:47.3]} 15... Rhd8 {[%clk 0:03:05.5]} 16. Kb2 {[%clk 0:02:46.3]} 16... a5
{[%clk 0:03:05.8]} 17. a4 {[%clk 0:02:46.3]} 17... Nc5 {[%clk 0:03:06.2]} 18.
Rxd8 {[%clk 0:02:44]} 18... Nxd8 {[%clk 0:03:07.1]} 19. Ne1 {[%clk 0:02:34.2]}
19... Bf7 {[%clk 0:03:04.8]} 20. Nd3 {[%clk 0:02:30.3]} 20... Nde6 {[%clk
0:03:04.1]} 21. Nxc5 {[%clk 0:02:30]} 21... Nxc5 {[%clk 0:03:05]} 22. f3 {[%clk
0:02:30.1]} 22... Rd8 {[%clk 0:03:01.4]} 23. Rxd8 {[%clk 0:02:29.4]} 23... Kxd8
{[%clk 0:03:02.3]} 24. Kc2 {[%clk 0:02:28.6]} 24... Ke7 {[%clk 0:03:02.2]} 25.
Bd1 {[%clk 0:02:28.4]} 25... f5 {[%clk 0:03:00.8]} 26. Kd2 {[%clk 0:02:24.7]}
26... f4 {[%clk 0:03:00.9]} 27. Ne2 {[%clk 0:02:21.1]} 27... Kd6 {[%clk
0:02:59.4]} 28. Kc3 {[%clk 0:02:21.2]} 28... Ne6 {[%clk 0:02:58.6]} 29. Bc2
{[%clk 0:02:20.2]} 29... Kc5 {[%clk 0:02:58.7]} 30. Nc1 {[%clk 0:02:16.8]} 30...
Kd6 {[%clk 0:02:50.5]} 31. Nd3 {[%clk 0:02:14.8]} 31... Nc5 {[%clk 0:02:50.8]}
32. Bb1 {[%clk 0:02:08.5]} 32... Nxd3 {[%clk 0:02:50.9]} 33. Bxd3 {[%clk
0:02:08.4]} 33... Kc5 {[%clk 0:02:51.8]} 34. Bc2 {[%clk 0:02:08.3]} 34... g5
{[%clk 0:02:52]} 35. Bd3 {[%clk 0:01:58.8]} 35... h5 {[%clk 0:02:52.2]} 36. Be2
{[%clk 0:01:58.1]} 36... Be6 {[%clk 0:02:52.6]} 37. Bd1 {[%clk 0:01:57.6]} 37...
Kd6 {[%clk 0:02:39.3]} 38. b4 {[%clk 0:01:55.9]} 38... axb4+ {[%clk 0:02:37.1]}
39. Kxb4 {[%clk 0:01:56.1]} 39... b6 {[%clk 0:02:04.4]} 40. Be2 {[%clk
0:01:43.9]} 40... c5+ {[%clk 0:01:57.4]} 41. Kb5 {[%clk 0:01:42.1]} 41... Bd7+
{[%clk 0:01:57.3]} 42. Kxb6 {[%clk 0:01:42]} 42... Bxa4 {[%clk 0:01:57.6]} 43.
Ka5 {[%clk 0:01:40.8]} 43... Bc2 {[%clk 0:01:57.9]} 44. Kb5 {[%clk 0:01:37.7]}
44... g4 {[%clk 0:01:57.5]} 45. hxg4 {[%clk 0:01:36.2]} 45... hxg4 {[%clk
0:01:57.8]} 46. Kb6 {[%clk 0:01:35.2]} 46... g3 {[%clk 0:01:57.6]} 47. Kb5
{[%clk 0:01:34.5]} 47... Bb3 {[%clk 0:01:54.6]} 48. Kb6 {[%clk 0:01:33.4]} 48...
Ba4 {[%clk 0:01:52.4]} 49. Ka5 {[%clk 0:01:33.1]} 49... Bd7 {[%clk 0:01:49.7]}
50. Kb6 {[%clk 0:01:32.8]} 50... Be6 {[%clk 0:01:49.8]} 51. Bf1 {[%clk
0:01:30.4]} 51... Bd7 {[%clk 0:01:46.8]} 52. Be2 {[%clk 0:01:29.5]} 52... Ba4
{[%clk 0:01:46.6]} 53. Ka5 {[%clk 0:01:24.4]} 53... Bc2 {[%clk 0:01:46.3]} 54.
Kb5 {[%clk 0:01:23.9]} 54... Bb1 {[%clk 0:01:46.1]} 55. Ka5 {[%clk 0:01:22.3]}
55... Kc6 {[%clk 0:01:46.9]} 56. Ka4 {[%clk 0:01:20.4]} 56... Kb6 {[%clk
0:01:47.3]} 57. Bf1 {[%clk 0:01:18.6]} 57... Bc2+ {[%clk 0:01:46]} 58. Ka3
{[%clk 0:01:18.3]} 58... Ka5 {[%clk 0:01:46.2]} 59. Kb2 {[%clk 0:01:17.9]} 59...
Bd1 {[%clk 0:01:45.5]} 60. Kc3 {[%clk 0:01:17.7]} 60... Ka4 {[%clk 0:01:44.7]}
61. Bd3 {[%clk 0:01:04.2]} 61... Bxf3 {[%clk 0:01:36.2]} 0-1

[Event "Early-Titled-Tuesday-Blitz-April-16-2024"]
[Site "Chess.com"]
[Date "2024.04.16"]
[Round "1"]
[White "michaelskie11"]
[Black "TheCount"]
[Result "0-1"]
[WhiteElo "2382"]
[BlackElo "2678"]
[TimeControl "180+1"]
[EndTime "8:06:26 PDT"]
[Termination "TheCount won by resignation"]

1. d4 {[%clk 0:02:59.5]} 1... Nf6 {[%clk 0:02:58.1]} 2. c4 {[%clk 0:02:59]} 2...
g6 {[%clk 0:02:58.4]} 3. Nc3 {[%clk 0:02:56.8]} 3... d5 {[%clk 0:02:59]} 4. Nf3
{[%clk 0:02:50.7]} 4... Bg7 {[%clk 0:02:58.8]} 5. Bg5 {[%clk 0:02:48.1]} 5...
Ne4 {[%clk 0:02:52.7]} 6. Bf4 {[%clk 0:02:36]} 6... Nxc3 {[%clk 0:02:49.3]} 7.
bxc3 {[%clk 0:02:35.9]} 7... dxc4 {[%clk 0:02:49]} 8. e4 {[%clk 0:02:33.2]} 8...
c5 {[%clk 0:02:45.9]} 9. Bxc4 {[%clk 0:02:28.6]} 9... Nc6 {[%clk 0:02:46.2]} 10.
d5 {[%clk 0:02:10.2]} 10... Na5 {[%clk 0:02:29.2]} 11. Bb5+ {[%clk 0:01:44.3]}
11... Bd7 {[%clk 0:02:29.5]} 12. Bxd7+ {[%clk 0:01:41.4]} 12... Qxd7 {[%clk
0:02:30.4]} 13. e5 {[%clk 0:01:40.1]} 13... Rd8 {[%clk 0:02:25.5]} 14. O-O
{[%clk 0:01:15]} 14... O-O {[%clk 0:02:25.3]} 15. d6 {[%clk 0:01:08.4]} 15...
exd6 {[%clk 0:02:25.1]} 16. exd6 {[%clk 0:01:09]} 16... Nc4 {[%clk 0:02:25.8]}
17. Qd3 {[%clk 0:00:56.1]} 17... b5 {[%clk 0:02:24.2]} 18. Rad1 {[%clk
0:00:55.3]} 18... Rfe8 {[%clk 0:02:21.9]} 19. h3 {[%clk 0:00:52.8]} 19... Nb2
{[%clk 0:02:15.8]} 20. Qd5 {[%clk 0:00:51]} 20... Nxd1 {[%clk 0:02:13.9]} 21.
Rxd1 {[%clk 0:00:51.9]} 21... Qf5 {[%clk 0:01:53.1]} 22. Qxf5 {[%clk 0:00:40]}
22... gxf5 {[%clk 0:01:54]} 23. Rd5 {[%clk 0:00:39.1]} 23... c4 {[%clk
0:01:46.4]} 24. Rxb5 {[%clk 0:00:38.4]} 24... Bxc3 {[%clk 0:01:43.7]} 25. Rc5
{[%clk 0:00:37.1]} 25... Re4 {[%clk 0:01:41.1]} 26. Rxf5 {[%clk 0:00:33.3]}
26... Bb4 {[%clk 0:01:29]} 27. Ng5 {[%clk 0:00:33]} 27... Re1+ {[%clk
0:01:27.1]} 28. Kh2 {[%clk 0:00:33]} 28... Bxd6 {[%clk 0:01:13.3]} 29. Bxd6
{[%clk 0:00:16.9]} 29... Rxd6 {[%clk 0:01:14.2]} 30. Nxf7 {[%clk 0:00:17.4]}
30... Rde6 {[%clk 0:00:50.5]} 31. Ng5 {[%clk 0:00:17]} 31... R6e5 {[%clk
0:00:49]} 0-1

[Event "Early-Titled-Tuesday-Blitz-April-16-2024"]
[Site "Chess.com"]
[Date "2024.04.16"]
[Round "1"]
[White "Ginzburg_Yakov"]
[Black "Jospem"]
[Result "0-1"]
[WhiteElo "2534"]
[BlackElo "3078"]
[TimeControl "180+1"]
[EndTime "8:06:30 PDT"]
[Termination "Jospem won by resignation"]

1. e4 {[%clk 0:02:59.1]} 1... c5 {[%clk 0:03:00.4]} 2. Nf3 {[%clk 0:02:59]} 2...
d6 {[%clk 0:03:01.2]} 3. Bb5+ {[%clk 0:02:55.1]} 3... Nd7 {[%clk 0:03:01.1]} 4.
O-O {[%clk 0:02:54.9]} 4... a6 {[%clk 0:03:01.1]} 5. Bxd7+ {[%clk 0:02:54.8]}
5... Bxd7 {[%clk 0:03:02]} 6. d4 {[%clk 0:02:54.6]} 6... cxd4 {[%clk 0:03:02.9]}
7. Nxd4 {[%clk 0:02:54.6]} 7... Rc8 {[%clk 0:03:03.8]} 8. b3 {[%clk 0:02:49.9]}
8... Nf6 {[%clk 0:03:02.4]} 9. Re1 {[%clk 0:02:47.2]} 9... e5 {[%clk 0:03:02]}
10. Nf3 {[%clk 0:02:42.2]} 10... h6 {[%clk 0:02:58.7]} 11. Ba3 {[%clk 0:02:36]}
11... Bc6 {[%clk 0:02:50.1]} 12. Nbd2 {[%clk 0:02:34.5]} 12... b5 {[%clk
0:02:44.5]} 13. Qe2 {[%clk 0:02:25.6]} 13... Be7 {[%clk 0:02:43.9]} 14. Rad1
{[%clk 0:02:23]} 14... O-O {[%clk 0:02:43.9]} 15. Bb2 {[%clk 0:02:15.9]} 15...
Qa5 {[%clk 0:02:40.4]} 16. a3 {[%clk 0:02:07.7]} 16... Qb6 {[%clk 0:02:38.5]}
17. Nh4 {[%clk 0:02:04]} 17... Bd7 {[%clk 0:02:30.5]} 18. Ndf3 {[%clk
0:02:02.9]} 18... g6 {[%clk 0:02:22.9]} 19. Bc1 {[%clk 0:01:53.5]} 19... Kg7
{[%clk 0:02:09.7]} 20. h3 {[%clk 0:01:38.3]} 20... Qc6 {[%clk 0:02:07.6]} 21.
Qe3 {[%clk 0:01:22.6]} 21... Rh8 {[%clk 0:02:06.1]} 22. Re2 {[%clk 0:01:22.2]}
22... Be6 {[%clk 0:02:02.7]} 23. g4 {[%clk 0:01:17.2]} 23... a5 {[%clk
0:01:55.2]} 24. Kh1 {[%clk 0:01:14.9]} 24... a4 {[%clk 0:01:55.6]} 25. b4 {[%clk
0:01:08.2]} 25... Qc3 {[%clk 0:01:47]} 26. Qxc3 {[%clk 0:00:50.3]} 26... Rxc3
{[%clk 0:01:47.9]} 27. Bb2 {[%clk 0:00:50.5]} 27... Rc4 {[%clk 0:01:41.1]} 28.
Rde1 {[%clk 0:00:43.8]} 28... Rhc8 {[%clk 0:01:41.3]} 29. c3 {[%clk 0:00:42.7]}
29... h5 {[%clk 0:01:36.6]} 30. g5 {[%clk 0:00:40]} 30... Nh7 {[%clk 0:01:36.8]}
31. Rg1 {[%clk 0:00:38.4]} 31... Bxh3 {[%clk 0:01:37.1]} 32. Nd2 {[%clk
0:00:37.5]} 32... R4c7 {[%clk 0:01:33.3]} 33. f4 {[%clk 0:00:37.4]} 33... Bg4
{[%clk 0:01:28.5]} 34. Rxg4 {[%clk 0:00:35.4]} 34... hxg4 {[%clk 0:01:28.6]} 35.
fxe5 {[%clk 0:00:35.2]} 35... dxe5 {[%clk 0:01:28.5]} 36. c4 {[%clk 0:00:35.6]}
36... Bxg5 {[%clk 0:01:21.3]} 37. Bxe5+ {[%clk 0:00:35.4]} 37... Bf6 {[%clk
0:01:22]} 38. Bxc7 {[%clk 0:00:35.5]} 38... Rxc7 {[%clk 0:01:22.9]} 39. cxb5
{[%clk 0:00:25.5]} 39... Bxh4 {[%clk 0:01:22.9]} 40. b6 {[%clk 0:00:26]} 40...
Rb7 {[%clk 0:01:22.4]} 41. Nc4 {[%clk 0:00:26.1]} 41... Bd8 {[%clk 0:01:23.2]}
42. e5 {[%clk 0:00:21.3]} 42... Ng5 {[%clk 0:01:21.9]} 43. e6 {[%clk 0:00:22.2]}
43... Nxe6 {[%clk 0:01:21.9]} 44. Rd2 {[%clk 0:00:17.6]} 44... Bxb6 {[%clk
0:01:22]} 0-1

[Event "Early-Titled-Tuesday-Blitz-April-16-2024"]
[Site "Chess.com"]
[Date "2024.04.16"]
[Round "1"]
[White "alturas_pacificas"]
[Black "kachsona"]
[Result "0-1"]
[WhiteElo "2290"]
[BlackElo "2610"]
[TimeControl "180+1"]
[EndTime "8:06:30 PDT"]
[Termination "kachsona won by resignation"]

1. d4 {[%clk 0:02:59]} 1... d6 {[%clk 0:02:57.6]} 2. Nf3 {[%clk 0:02:58.7]} 2...
Nf6 {[%clk 0:02:57.6]} 3. Bf4 {[%clk 0:02:58.9]} 3... Nh5 {[%clk 0:02:56]} 4.
Bg5 {[%clk 0:02:47.4]} 4... h6 {[%clk 0:02:55.6]} 5. Bd2 {[%clk 0:02:41.6]} 5...
g5 {[%clk 0:02:55.5]} 6. c4 {[%clk 0:02:38.7]} 6... Bg7 {[%clk 0:02:55.1]} 7.
Bc3 {[%clk 0:02:38.6]} 7... Bf5 {[%clk 0:02:50.2]} 8. e3 {[%clk 0:02:29.2]} 8...
Nf6 {[%clk 0:02:44.9]} 9. Bd3 {[%clk 0:02:29.3]} 9... Ne4 {[%clk 0:02:42.6]} 10.
Qc2 {[%clk 0:02:22.7]} 10... Nxc3 {[%clk 0:02:37.9]} 11. Bxf5 {[%clk 0:02:20.3]}
11... Nxb1 {[%clk 0:02:37.7]} 12. Rxb1 {[%clk 0:02:17.9]} 12... e6 {[%clk
0:02:37.1]} 13. Bd3 {[%clk 0:02:17.4]} 13... Nc6 {[%clk 0:02:33.8]} 14. a3
{[%clk 0:02:16.7]} 14... g4 {[%clk 0:02:30.1]} 15. Nd2 {[%clk 0:02:14.8]} 15...
Qg5 {[%clk 0:02:26.5]} 16. b4 {[%clk 0:02:09.1]} 16... h5 {[%clk 0:02:22]} 17.
b5 {[%clk 0:02:06.1]} 17... Ne7 {[%clk 0:02:22]} 18. c5 {[%clk 0:01:55.8]} 18...
d5 {[%clk 0:02:18.9]} 19. a4 {[%clk 0:01:40.4]} 19... h4 {[%clk 0:02:16.4]} 20.
h3 {[%clk 0:01:20.3]} 20... f5 {[%clk 0:01:59.3]} 21. hxg4 {[%clk 0:01:00.9]}
21... fxg4 {[%clk 0:02:00.2]} 22. b6 {[%clk 0:00:56.9]} 22... c6 {[%clk
0:01:54.9]} 23. a5 {[%clk 0:00:53.8]} 23... a6 {[%clk 0:01:53.7]} 24. Qd1 {[%clk
0:00:35.4]} 24... Kd7 {[%clk 0:01:51.3]} 25. Qe2 {[%clk 0:00:34.4]} 25... Nf5
{[%clk 0:01:36.7]} 26. Bxf5 {[%clk 0:00:34.1]} 26... exf5 {[%clk 0:01:32.3]} 27.
f4 {[%clk 0:00:30.8]} 27... Qg6 {[%clk 0:01:25.1]} 28. Qd3 {[%clk 0:00:27.2]}
28... Rae8 {[%clk 0:01:22.9]} 29. Kd1 {[%clk 0:00:26.4]} 29... Qe6 {[%clk
0:00:54.5]} 30. Re1 {[%clk 0:00:25.9]} 30... h3 {[%clk 0:00:51.5]} 31. g3 {[%clk
0:00:26]} 31... h2 {[%clk 0:00:51.5]} 32. Kc2 {[%clk 0:00:25.9]} 32... Rh3
{[%clk 0:00:50]} 33. Re2 {[%clk 0:00:19.4]} 33... h1=Q {[%clk 0:00:48.4]} 34.
Rxh1 {[%clk 0:00:19.7]} 34... Rxh1 {[%clk 0:00:48.6]} 0-1